[Event "*** Titled Tuesday 3|2 Blitz"]
[Site "Chess.com"]
[Date "2015.03.03"]
[Round "9"]
[White "GGuseinov"]
[Black "AlexanderL"]
[Result "0-1"]
[WhiteElo "2521"]
[BlackElo "2533"]
[TimeControl "180+2"]
[EndTime "13:02:10 PST"]
[Termination "AlexanderL won by resignation"]

1. e4 {[%clk 0:02:55.3]} 1... e6 {[%clk 0:02:59.2]} 2. d4 {[%clk 0:02:54.7]}
2... d5 {[%clk 0:03:00.3]} 3. Nd2 {[%clk 0:02:56.3]} 3... c5 {[%clk 0:03:00.8]}
4. Ngf3 {[%clk 0:02:54.7]} 4... cxd4 {[%clk 0:03:00.7]} 5. exd5 {[%clk
0:02:52.7]} 5... Qxd5 {[%clk 0:03:01.4]} 6. Bc4 {[%clk 0:02:53.3]} 6... Qd6
{[%clk 0:03:01.4]} 7. O-O {[%clk 0:02:53.7]} 7... Nf6 {[%clk 0:03:02.7]} 8. Nb3
{[%clk 0:02:53.7]} 8... Nc6 {[%clk 0:03:03.1]} 9. Nbxd4 {[%clk 0:02:54.6]} 9...
Nxd4 {[%clk 0:03:04.2]} 10. Nxd4 {[%clk 0:02:55.8]} 10... a6 {[%clk 0:03:03.4]}
11. c3 {[%clk 0:02:42.7]} 11... Qc7 {[%clk 0:03:03.5]} 12. Bd3 {[%clk
0:02:39.3]} 12... Bd6 {[%clk 0:03:03.5]} 13. h3 {[%clk 0:02:35.4]} 13... Bh2+
{[%clk 0:02:59.1]} 14. Kh1 {[%clk 0:02:35.5]} 14... Bf4 {[%clk 0:02:57.4]} 15.
Bxf4 {[%clk 0:02:36.2]} 15... Qxf4 {[%clk 0:02:57.8]} 16. Qf3 {[%clk 0:02:36.8]}
16... Qxf3 {[%clk 0:02:54]} 17. Nxf3 {[%clk 0:02:38.4]} 17... b6 {[%clk
0:02:49]} 18. Ne5 {[%clk 0:02:33.6]} 18... Bb7 {[%clk 0:02:44.9]} 19. Rad1
{[%clk 0:02:19.4]} 19... Ke7 {[%clk 0:02:43.6]} 20. Kg1 {[%clk 0:02:19.2]} 20...
Rhd8 {[%clk 0:02:39]} 21. Bc2 {[%clk 0:02:20]} 21... Rxd1 {[%clk 0:02:19.7]} 22.
Rxd1 {[%clk 0:02:20.1]} 22... Rc8 {[%clk 0:02:21.3]} 23. f3 {[%clk 0:02:16.7]}
23... Rc5 {[%clk 0:02:19.8]} 24. Nd3 {[%clk 0:02:14.3]} 24... Rc7 {[%clk
0:02:12.5]} 25. Kf2 {[%clk 0:02:12.8]} 25... Nd5 {[%clk 0:02:11]} 26. Bb3 {[%clk
0:02:04.2]} 26... a5 {[%clk 0:02:05.2]} 27. Ne5 {[%clk 0:02:01.9]} 27... b5
{[%clk 0:02:01.1]} 28. a3 {[%clk 0:01:50]} 28... f6 {[%clk 0:01:56.2]} 29. Bxd5
{[%clk 0:01:36.3]} 29... Bxd5 {[%clk 0:01:55]} 30. Ng4 {[%clk 0:01:35.6]} 30...
Bb3 {[%clk 0:01:37.3]} 31. Rd2 {[%clk 0:01:32]} 31... Rc5 {[%clk 0:01:34]} 32.
Ne3 {[%clk 0:01:31.9]} 32... g5 {[%clk 0:01:29.7]} 33. Rd4 {[%clk 0:01:27.9]}
33... e5 {[%clk 0:01:23.9]} 34. Nf5+ {[%clk 0:01:27.9]} 34... Ke6 {[%clk
0:01:22]} 35. Ng7+ {[%clk 0:01:28.9]} 35... Ke7 {[%clk 0:01:09.3]} 36. Nf5+
{[%clk 0:01:29.1]} 36... Ke6 {[%clk 0:01:10.5]} 37. Ng7+ {[%clk 0:01:30.3]}
37... Ke7 {[%clk 0:00:57.2]} 38. Rd2 {[%clk 0:01:29.9]} 38... Be6 {[%clk
0:00:45.7]} 39. g4 {[%clk 0:01:30.9]} 39... Bd7 {[%clk 0:00:43.9]} 40. Nh5
{[%clk 0:01:30.9]} 40... Be6 {[%clk 0:00:43.6]} 41. Ng3 {[%clk 0:01:31.1]} 41...
Rc4 {[%clk 0:00:42.2]} 42. Ne4 {[%clk 0:01:30.3]} 42... b4 {[%clk 0:00:41.8]}
43. cxb4 {[%clk 0:01:27.4]} 43... axb4 {[%clk 0:00:42.8]} 44. axb4 {[%clk
0:01:24.4]} 44... Rxb4 {[%clk 0:00:43]} 45. Rc2 {[%clk 0:01:25.2]} 45... Bd5
{[%clk 0:00:39.1]} 46. Ng3 {[%clk 0:01:02.7]} 46... Ke6 {[%clk 0:00:34.4]} 47.
Nf5 {[%clk 0:00:56.7]} 47... Rf4 {[%clk 0:00:33.4]} 48. Rc3 {[%clk 0:00:43.1]}
48... Rb4 {[%clk 0:00:34.5]} 49. Rc7 {[%clk 0:00:39.8]} 49... Rxb2+ {[%clk
0:00:29.9]} 50. Kg3 {[%clk 0:00:41]} 50... Rb7 {[%clk 0:00:20.1]} 51. Ng7+
{[%clk 0:00:20.7]} 51... Kd6 {[%clk 0:00:21.3]} 52. Ne8+ {[%clk 0:00:20.1]}
52... Ke6 {[%clk 0:00:22.6]} 53. Rc3 {[%clk 0:00:11.6]} 53... Ke7 {[%clk
0:00:16.6]} 54. Ng7 {[%clk 0:00:07.9]} 54... Kd7 {[%clk 0:00:17.4]} 55. Nf5
{[%clk 0:00:08]} 55... Rb1 {[%clk 0:00:11.3]} 56. Rd3 {[%clk 0:00:06.4]} 56...
Rb5 {[%clk 0:00:12.3]} 57. Ra3 {[%clk 0:00:05.9]} 57... Bb7 {[%clk 0:00:10.6]}
58. Rd3+ {[%clk 0:00:06.4]} 58... Rd5 {[%clk 0:00:11.6]} 59. Rb3 {[%clk
0:00:07.4]} 59... Kc7 {[%clk 0:00:12.2]} 60. Rc3+ {[%clk 0:00:08.5]} 60... Kd8
{[%clk 0:00:13.1]} 61. Rb3 {[%clk 0:00:09.5]} 61... Kc7 {[%clk 0:00:11.7]} 62.
Rc3+ {[%clk 0:00:10.5]} 62... Bc6 {[%clk 0:00:10.7]} 63. Ne7 {[%clk 0:00:10.4]}
63... Rd6 {[%clk 0:00:11.9]} 64. Nf5 {[%clk 0:00:10.7]} 64... Re6 {[%clk
0:00:11.3]} 65. Ng7 {[%clk 0:00:11.8]} 65... Re7 {[%clk 0:00:11.7]} 66. Nf5
{[%clk 0:00:12.7]} 66... Rd7 {[%clk 0:00:12.8]} 67. Ra3 {[%clk 0:00:13.6]} 67...
Kb6 {[%clk 0:00:12.7]} 68. Rb3+ {[%clk 0:00:13.8]} 68... Bb5 {[%clk 0:00:13.8]}
69. Rc3 {[%clk 0:00:13.1]} 69... Rd2 {[%clk 0:00:14.8]} 70. Rb3 {[%clk
0:00:12.3]} 70... Kc5 {[%clk 0:00:14.6]} 71. Rb1 {[%clk 0:00:13.1]} 71... Bd3
{[%clk 0:00:13.6]} 72. Rc1+ {[%clk 0:00:13.9]} 72... Kd5 {[%clk 0:00:09.2]} 73.
h4 {[%clk 0:00:08.9]} 73... Bxf5 {[%clk 0:00:06.5]} 74. gxf5 {[%clk 0:00:10.8]}
74... gxh4+ {[%clk 0:00:07.9]} 75. Kxh4 {[%clk 0:00:12.7]} 75... Rh2+ {[%clk
0:00:08.8]} 76. Kg4 {[%clk 0:00:12.3]} 76... Rg2+ {[%clk 0:00:10.2]} 77. Kh4
{[%clk 0:00:11.3]} 77... Rg5 {[%clk 0:00:12.1]} 78. Rd1+ {[%clk 0:00:12.4]}
78... Kc4 {[%clk 0:00:12.6]} 79. Rd7 {[%clk 0:00:12.3]} 79... Rxf5 {[%clk
0:00:13.2]} 80. Kg4 {[%clk 0:00:14]} 80... Rf4+ {[%clk 0:00:14.3]} 81. Kg3
{[%clk 0:00:15.3]} 81... h5 {[%clk 0:00:15.5]} 82. Kf2 {[%clk 0:00:13.3]} 82...
h4 {[%clk 0:00:09.7]} 83. Ke3 {[%clk 0:00:13.9]} 83... Kc5 {[%clk 0:00:10.3]}
84. Rd8 {[%clk 0:00:13.6]} 84... Kc6 {[%clk 0:00:09.9]} 85. Rd1 {[%clk
0:00:11.5]} 85... h3 {[%clk 0:00:09.4]} 86. Kf2 {[%clk 0:00:10.3]} 86... Rh4
{[%clk 0:00:10.2]} 87. Kg3 {[%clk 0:00:09.7]} 87... Rh5 {[%clk 0:00:11]} 88. Kh2
{[%clk 0:00:09.9]} 88... f5 {[%clk 0:00:11.3]} 89. Rd8 {[%clk 0:00:08.9]} 89...
Kc5 {[%clk 0:00:07.8]} 90. Rd7 {[%clk 0:00:07.2]} 90... e4 {[%clk 0:00:08.2]}
91. fxe4 {[%clk 0:00:06.2]} 91... fxe4 {[%clk 0:00:09.5]} 92. Rd8 {[%clk
0:00:07.5]} 92... Kc4 {[%clk 0:00:10.7]} 93. Rd7 {[%clk 0:00:07.7]} 93... e3
{[%clk 0:00:11.8]} 94. Rd8 {[%clk 0:00:07.8]} 94... Kc3 {[%clk 0:00:12.6]} 95.
Re8 {[%clk 0:00:08.9]} 95... Kd4 {[%clk 0:00:13.2]} 96. Rd8+ {[%clk 0:00:10.2]}
96... Ke4 {[%clk 0:00:14.2]} 97. Re8+ {[%clk 0:00:11.6]} 97... Re5 {[%clk
0:00:15.3]} 98. Ra8 {[%clk 0:00:10.8]} 98... e2 {[%clk 0:00:16]} 99. Ra1 {[%clk
0:00:12.4]} 99... Kf3 {[%clk 0:00:17.1]} 100. Re1 {[%clk 0:00:11.6]} 100... Kf2
{[%clk 0:00:18.4]} 101. Rg1 {[%clk 0:00:10.8]} 101... e1=Q {[%clk 0:00:15.7]}
102. Rf1+ {[%clk 0:00:12.5]} 102... Kxf1 {[%clk 0:00:14.1]} 0-1